bitfinex-derivatives/quotes_BTCF0:USTF0_20210104
["timestamp","ask_amount","ask_price","bid_price","bid_amount"]
[1609772091449,5.207,31974.0,31960.0,0.15078]
[1609772092150,5.207,31974.0,31961.0,0.0935]
[1609772092351,5.207,31974.0,31965.0,0.13632608]
[1609772092550,0.0925,31973.0,31961.0,0.0935]
[1609772092955,5.207,31974.0,31961.0,0.0935]
[1609772093249,5.207,31974.0,31962.0,0.0926]
[1609772094150,5.207,31974.0,31960.0,0.15078]
[1609772094351,5.207,31974.0,31965.0,0.13632608]
[1609772094552,5.207,31974.0,31965.0,0.26337608]
[1609772094751,5.207,31974.0,31965.0,0.12705]
[1609772095650,5.34008,31974.0,31956.0,0.1211]
[1609772096252,0.13632608,31957.0,31956.0,0.25742608]
[1609772097353,0.23062608,31957.0,31956.0,0.25742608]
[1609772097755,0.13632608,31957.0,31956.0,0.25742608]
[1609772097955,0.566864,31976.0,31956.0,0.1211]
[1609772098355,4.9853,31972.0,31947.0,0.15287]
[1609772098554,0.13632608,31961.0,31960.0,0.13632608]
[1609772099155,2.46542608,31969.0,31960.0,0.13632608]
[1609772099356,0.566864,31976.0,31960.0,0.13632608]
[1609772099555,0.68019902,31977.0,31960.0,0.13632608]
[1609772099556,5.0526,31967.0,31960.0,0.13632608]
[1609772099957,5.0526,31967.0,31947.0,0.15287]
[1609772100457,5.0526,31967.0,31961.0,0.13632608]
[1609772100658,0.0931,31975.0,31947.0,0.15287]
[1609772101058,4.6001,31967.0,31947.0,0.15287]
[1609772101260,0.095,31966.0,31947.0,0.15287]
[1609772102362,0.0947,31965.0,31947.0,0.15287]
[1609772102562,0.13632608,31954.0,31953.0,0.13632608]
[1609772103663,0.23092608,31954.0,31953.0,0.13632608]
[1609772104165,0.95032608,31954.0,31947.0,0.15287]
[1609772104363,0.95032608,31954.0,31929.0,1.97040546]
[1609772104364,0.23092608,31954.0,31929.0,1.97040546]
[1609772104563,4.0776,31948.0,31929.0,1.97040546]
[1609772104964,4.0776,31948.0,31940.0,0.13632608]
[1609772105764,4.0776,31948.0,31936.0,0.09881]
[1609772106066,4.1712,31948.0,31936.0,0.09881]
[1609772107067,0.13632608,31937.0,31936.0,0.09881]
[1609772107469,4.96962608,31937.0,31936.0,0.09881]
[1609772108070,0.13632608,31937.0,31936.0,0.09881]
[1609772109671,0.14834,31957.0,31936.0,0.09881]
[1609772110472,0.14834,31957.0,31936.0,0.14946]
[1609772110672,0.56596138,31954.0,31936.0,0.14946]
[1609772111071,0.56596138,31954.0,31937.0,0.13632608]
[1609772112173,0.14834,31957.0,31937.0,0.13632608]
[1609772112772,0.56603167,31965.0,31937.0,0.13632608]
[1609772113173,0.13632608,31938.0,31937.0,0.13632608]
[1609772113373,0.13632608,31938.0,31936.0,0.14946]
[1609772115472,0.13632608,31938.0,31915.0,1.95989807]
[1609772116380,0.13632608,31938.0,31914.0,1.96053139]
[1609772117073,4.8603,31942.0,31930.0,0.13632608]
[1609772117473,0.15081,31943.0,31930.0,0.13632608]
[1609772118075,0.15081,31943.0,31930.0,0.26497608]
[1609772118276,0.13586,31952.0,31930.0,0.12865]
[1609772118675,4.57435301,31962.0,31931.0,0.0929]
[1609772118875,4.0083,31962.0,31931.0,0.0929]
[1609772119075,0.56454209,31963.0,31957.0,0.13632608]
[1609772119676,0.56454209,31963.0,31949.0,0.1399]
[1609772120077,0.56442827,31974.0,31949.0,0.1399]
[1609772121276,0.70075435,31974.0,31973.0,0.13632608]
[1609772121477,0.13632608,31974.0,31973.0,0.13632608]
[1609772123079,0.13632608,31974.0,31965.0,0.15363]
[1609772123281,0.13632608,31974.0,31967.0,0.13632608]
[1609772125182,0.13632608,31974.0,31973.0,0.13632608]
[1609772128387,0.13632608,31974.0,31965.0,0.15363]
[1609772128585,0.13632608,31974.0,31945.0,4.8821]
[1609772128785,0.13632608,31974.0,31944.0,1.93385104]
[1609772128985,4.84362608,31974.0,31944.0,1.93385104]
[1609772129185,4.7073,31974.0,31963.0,0.13632608]
[1609772129386,4.7073,31974.0,31963.0,0.25638608]
[1609772129585,0.11,31984.0,31963.0,0.25638608]
[1609772129785,0.56607402,31992.0,31963.0,0.12006]
[1609772129986,4.4456,31989.0,31963.0,0.12006]
[1609772130386,4.59967,31989.0,31963.0,0.12006]
[1609772130586,0.56646606,31987.0,31963.0,0.12006]
[1609772131388,0.56646606,31987.0,31974.0,0.13632608]
[1609772131789,5.27939152,31989.0,31974.0,0.13632608]
[1609772131790,4.59967,31989.0,31974.0,0.13632608]
[1609772133389,0.13632608,31975.0,31974.0,0.13632608]
[1609772133789,0.13632608,31975.0,31963.0,0.12006]
[1609772133989,0.79762608,31975.0,31963.0,0.12006]
[1609772134490,0.79762608,31975.0,31933.0,0.0926]
[1609772134691,0.79762608,31975.0,31946.0,1.92349702]
[1609772135391,0.6613,31975.0,31967.0,0.13632608]
[1609772135891,0.15098,31982.0,31967.0,0.13632608]
[1609772136091,0.15098,31982.0,31959.0,0.10286]
[1609772136293,3.5516,31968.0,31959.0,0.10286]
[1609772136692,3.5516,31968.0,31946.0,1.92349702]
[1609772137294,3.5516,31968.0,31942.0,1.92461233]
[1609772137493,3.5516,31968.0,31947.0,0.13632608]
[1609772139393,0.13632608,31948.0,31947.0,0.13632608]
[1609772142398,4.6936,31956.0,31936.0,1.93020007]
[1609772142603,4.6936,31956.0,31941.0,0.11055]
[1609772142800,3.6243,31947.0,31936.0,1.93020007]
[1609772143201,0.0925,31946.0,31936.0,1.93020007]
[1609772143400,0.14408,31947.0,31936.0,1.93020007]
[1609772143600,0.14408,31947.0,31931.0,1.94305157]
[1609772143900,3.5566,31943.0,31931.0,1.94305157]
[1609772144100,3.5566,31943.0,31933.0,0.13632608]
[1609772145001,0.14408,31947.0,31933.0,0.13632608]
[1609772145804,0.14408,31947.0,31930.0,0.12865]
[1609772146002,0.56829841,31956.0,31930.0,0.12865]
[1609772146202,0.56829841,31956.0,31955.0,0.13632608]
[1609772146603,0.13632608,31957.0,31955.0,0.13632608]
[1609772147003,0.56688066,31959.0,31952.0,0.13177]
[1609772147802,0.56688066,31959.0,31942.0,0.11473]
[1609772148203,4.22181253,31976.0,31958.0,0.13632608]
[1609772149003,0.56681253,31976.0,31958.0,0.13632608]
[1609772150006,0.56668776,31978.0,31958.0,0.13632608]
[1609772150204,0.56668776,31978.0,31956.0,0.15271]
[1609772150404,0.56668776,31978.0,31967.0,0.13632608]
[1609772151405,0.56668776,31978.0,31963.0,0.14042]
[1609772151614,0.56662441,31985.0,31963.0,0.14042]
[1609772152407,0.56662441,31985.0,31982.0,0.13632608]
[1609772153409,0.12521,31990.0,31982.0,0.13632608]
[1609772154409,0.13632608,31983.0,31982.0,0.13632608]
[1609772156809,0.12521,31990.0,31982.0,0.13632608]
[1609772157009,0.5663322,31998.0,31982.0,0.13632608]
[1609772158411,0.70265828,31998.0,31997.0,0.13632608]
[1609772159212,0.5663322,31998.0,31981.0,0.1212]
[1609772159512,0.10607,32003.0,31981.0,0.1212]
[1609772160413,0.10607,32003.0,32000.0,0.13632608]
[1609772162113,0.678658,32005.0,32000.0,0.13632608]
[1609772162314,0.13632608,32001.0,32000.0,0.13632608]
[1609772165020,0.68127684,32011.0,32000.0,0.23102608]
[1609772165221,0.09769,32009.0,32000.0,0.23102608]
[1609772165423,0.09769,32009.0,31990.0,0.11233]
[1609772165623,0.09769,32009.0,31981.0,0.1212]
[1609772166022,0.09769,32009.0,31976.0,0.1865]
[1609772166423,0.1771,32008.0,31982.0,0.13632608]
[1609772166926,0.67791174,32004.0,31982.0,0.13632608]
[1609772168126,0.67789021,32001.0,31982.0,0.13632608]
[1609772168326,0.77642021,32001.0,31995.0,0.13632608]
[1609772168725,0.77642021,32001.0,31994.0,0.0942]
[1609772168924,0.77642021,32001.0,31995.0,0.0931]
[1609772169126,0.77642021,32001.0,31984.0,0.14934]
[1609772169429,0.09853,32001.0,31984.0,0.14934]
[1609772170229,0.77648265,32001.0,31984.0,0.14934]
[1609772170428,0.77648265,32001.0,31994.0,0.13632608]
[1609772172332,0.13632608,31995.0,31994.0,0.13632608]
[1609772174933,0.13632608,31995.0,31984.0,0.14934]
[1609772175333,4.1183,31987.0,31953.0,5.1621]
[1609772175536,4.1183,31987.0,31954.0,1.91398618]
[1609772175934,4.8869,31979.0,31954.0,1.91398618]
[1609772176135,4.8869,31979.0,31954.0,2.03979618]
[1609772176733,0.09853,32001.0,31978.0,0.13632608]
[1609772176934,0.09853,32001.0,31978.0,0.23614608]
[1609772177133,0.67939164,31997.0,31978.0,0.23614608]
[1609772178735,0.67939164,31997.0,31996.0,0.13632608]
[1609772179135,0.13632608,31999.0,31996.0,0.13632608]
[1609772182441,0.15562,32002.0,31996.0,0.13632608]
[1609772182639,0.15562,32002.0,32001.0,0.13632608]
[1609772182840,0.67971061,32007.0,32001.0,0.13632608]
[1609772183240,0.81568747,32008.0,32001.0,0.13632608]
[1609772184641,0.13632608,32008.0,32007.0,0.13632608]
[1609772185141,4.1316,32008.0,31986.0,0.12423]
[1609772185342,4.1316,32008.0,31978.0,0.09982]
[1609772185543,0.1771,32008.0,31963.0,1.90385614]
[1609772185743,4.03503,31992.0,31963.0,1.90385614]
[1609772186142,0.11443,31992.0,31963.0,1.90385614]
[1609772186942,0.0937,31991.0,31967.0,0.15571]
[1609772188141,0.0937,31991.0,31963.0,1.90385614]
[1609772188142,0.0929,31990.0,31963.0,1.90385614]
[1609772188342,0.0929,31990.0,31954.0,0.12581]
[1609772188542,0.0929,31990.0,31950.0,1.90492576]
[1609772188744,0.0929,31990.0,31957.0,0.13632608]
[1609772189543,0.0929,31990.0,31955.0,0.14273]
[1609772189745,0.67953643,31977.0,31955.0,0.14273]
[1609772189944,0.78623643,31977.0,31955.0,0.14273]
[1609772191146,0.78623643,31977.0,31976.0,0.13632608]
[1609772191347,0.78623643,31977.0,31955.0,0.14273]
[1609772191748,0.67912935,31975.0,31955.0,0.14273]
[1609772192851,0.1067,31977.0,31955.0,0.14273]
[1609772193050,0.1067,31977.0,31976.0,0.13632608]
[1609772193250,0.1067,31977.0,31955.0,0.14273]
[1609772194054,0.1067,31977.0,31936.0,1.8989375]
[1609772194956,0.67864981,31987.0,31936.0,1.8989375]
[1609772195158,0.67864981,31987.0,31964.0,0.13632608]
[1609772195558,0.67869932,31984.0,31964.0,0.13632608]
[1609772195756,0.81829932,31984.0,31964.0,0.13632608]
[1609772196558,0.81829932,31984.0,31951.0,0.13433]
[1609772196961,0.67835231,31983.0,31951.0,0.13433]
[1609772197160,0.67835231,31983.0,31957.0,0.13632608]
[1609772197661,0.77245231,31983.0,31957.0,0.13632608]
[1609772198061,0.67845484,31977.0,31957.0,0.13632608]
[1609772198261,0.80617484,31977.0,31957.0,0.13632608]
[1609772199162,0.13632608,31964.0,31963.0,0.13632608]
[1609772199361,0.13632608,31964.0,31951.0,0.13433]
[1609772200163,0.13632608,31964.0,31936.0,0.1223]
[1609772200562,0.13632608,31964.0,31923.0,1.91545772]
[1609772201165,0.11992,31968.0,31952.0,0.13632608]
[1609772203169,0.11992,31968.0,31964.0,0.13632608]
[1609772203569,0.11992,31968.0,31951.0,0.13151]
[1609772204373,0.67842118,31974.0,31951.0,0.13151]
[1609772205169,0.67842118,31974.0,31963.0,0.13632608]
[1609772205971,0.833009,31976.0,31963.0,0.13632608]
[1609772205972,0.68160453,31973.0,31963.0,0.13632608]
[1609772206171,0.68160453,31973.0,31951.0,0.13151]
[1609772206373,0.68160453,31973.0,31943.0,0.1074]
[1609772206572,0.68160453,31973.0,31931.0,1.92160155]
[1609772207073,0.68167292,31971.0,31930.0,1.92160592]
[1609772207273,0.68167292,31971.0,31955.0,0.13632608]
[1609772208073,0.68167141,31969.0,31955.0,0.13632608]
[1609772208273,0.83907141,31969.0,31932.0,0.11851]
[1609772209574,0.67941323,31967.0,31932.0,0.11851]
[1609772211174,0.67945232,31966.0,31932.0,0.11851]
[1609772211374,0.67945232,31966.0,31946.0,0.13632608]
[1609772211975,0.67945232,31966.0,31932.0,0.11851]
[1609772212375,0.0942,31965.0,31932.0,0.11851]
[1609772213077,0.0942,31965.0,31921.0,0.14376]
[1609772213278,0.13632608,31936.0,31935.0,0.13632608]
[1609772213476,0.67778027,31967.0,31935.0,0.13632608]
[1609772214377,0.67780831,31961.0,31928.0,0.14212]
[1609772214777,0.83015831,31961.0,31928.0,0.14212]
[1609772215378,0.83015831,31961.0,31945.0,0.13632608]
[1609772215980,0.83015831,31961.0,31928.0,0.14212]
[1609772216180,0.15235,31961.0,31928.0,0.14212]
[1609772216379,0.0938,31960.0,31928.0,0.14212]
[1609772217281,0.0938,31960.0,31940.0,0.13632608]
[1609772219284,0.13632608,31941.0,31940.0,0.13632608]
[1609772219885,0.15235,31961.0,31940.0,0.13632608]
[1609772220287,0.67535157,31963.0,31940.0,0.13632608]
[1609772220687,0.67535157,31963.0,31938.0,0.11482]
[1609772221286,0.13632608,31962.0,31956.0,0.13632608]
[1609772222792,0.25296608,31962.0,31956.0,0.13632608]
[1609772223397,0.13632608,31957.0,31956.0,0.13632608]
[1609772223593,0.13632608,31957.0,31938.0,0.11482]
[1609772223991,0.11664,31962.0,31942.0,4.9096]
[1609772224190,0.11664,31962.0,31938.0,0.11482]
[1609772224390,0.1574,31969.0,31953.0,4.0022]
[1609772224590,0.67595083,31974.0,31953.0,4.15529]
[1609772225389,0.67595083,31974.0,31973.0,0.13632608]
[1609772225593,0.82569233,31974.0,31973.0,0.13632608]
[1609772226493,0.60709233,31974.0,31973.0,0.13632608]
[1609772226694,0.53449233,31974.0,31973.0,0.13632608]
[1609772227094,0.53449233,31974.0,31972.0,5.14139]
[1609772227296,0.6755579,31993.0,31972.0,5.14139]
[1609772227694,0.6755579,31993.0,31992.0,0.13632608]
[1609772228495,0.13572,32002.0,31992.0,0.13632608]
[1609772228695,0.6760815,32005.0,31992.0,0.13632608]
[1609772229696,0.6760815,32005.0,32004.0,0.13632608]
[1609772230497,0.13632608,32006.0,32004.0,0.13632608]
[1609772233807,0.6756863,32013.0,32004.0,0.13632608]
[1609772234801,0.67568834,32012.0,32004.0,0.13632608]
[1609772235202,0.82729834,32012.0,32004.0,0.13632608]
[1609772235602,0.82729834,32012.0,32011.0,0.13632608]
[1609772235802,0.15161,32012.0,32011.0,0.13632608]
[1609772237206,0.15161,32012.0,32009.0,3.8266]
[1609772237605,0.67569959,32013.0,32011.0,0.13632608]
[1609772237806,0.43569959,32013.0,32011.0,0.13632608]
[1609772238807,0.10916,32019.0,32011.0,0.13632608]
[1609772239610,0.10916,32019.0,32018.0,0.13632608]
[1609772241711,0.24548608,32019.0,32018.0,0.13632608]
[1609772241911,0.24548608,32019.0,32009.0,3.8266]
[1609772241912,0.10916,32019.0,32009.0,3.8266]
[1609772242712,0.78211294,32027.0,32010.0,0.0926]
[1609772242913,0.10763,32027.0,32010.0,0.0926]
[1609772243313,0.10763,32027.0,32020.0,5.2045]
[1609772243714,0.93666104,32036.0,32026.0,0.13632608]
[1609772244815,0.93666104,32036.0,32027.0,0.0925]
[1609772245315,1.04903789,32040.0,32030.0,0.6314]
[1609772245516,0.93458565,32041.0,32030.0,0.6314]
[1609772245716,0.93458565,32041.0,32040.0,0.13632608]
[1609772247116,0.99955576,32044.0,32040.0,0.13632608]
[1609772249020,0.1771,32044.0,32040.0,0.13441934]
[1609772252325,0.29266,32044.0,32040.0,0.13441934]
[1609772252727,0.11556,32044.0,32040.0,0.13441934]
[1609772253326,0.07868641,32047.0,32040.0,0.13441934]
[1609772253728,0.07868641,32047.0,32046.0,0.13632608]
[1609772254127,0.07868641,32047.0,32046.0,0.29077608]
[1609772254326,8.641e-05,32047.0,32046.0,0.29077608]
[1609772256027,8.641e-05,32047.0,32046.0,0.38477608]
[1609772257029,8.641e-05,32047.0,32046.0,0.29077608]
[1609772260935,8.641e-05,32047.0,32046.0,0.15445]
[1609772261133,8.641e-05,32047.0,32034.0,4.67187]
[1609772261834,8.641e-05,32047.0,32046.0,0.13632608]
[1609772262034,8.641e-05,32047.0,32046.0,0.81152608]
[1609772264536,8.641e-05,32047.0,32046.0,0.13632608]
[1609772265738,8.641e-05,32047.0,32046.0,0.22982608]
[1609772265937,8.641e-05,32047.0,32046.0,0.13632608]
[1609772266739,8.641e-05,32047.0,32046.0,3.90292608]
[1609772267739,10.0,32054.0,32046.0,3.7666]
[1609772268140,10.0,32054.0,32053.0,0.13632608]
[1609772268441,10.0,32054.0,32053.0,0.24877608]
[1609772269242,10.0,32054.0,32053.0,0.11245]
[1609772270146,10.0,32054.0,32053.0,0.24877608]
[1609772272147,10.0,32054.0,32053.0,0.34147608]
[1609772272348,10.0,32054.0,32053.0,0.24877608]
[1609772273148,10.0,32054.0,32053.0,0.11245]
[1609772273347,10.0,32054.0,32053.0,0.20595]
[1609772273547,10.0,32054.0,32053.0,0.0935]
[1609772273748,10.0,32054.0,32053.0,0.15531]
[1609772274149,10.0,32054.0,32053.0,0.29163608]
[1609772274750,10.0,32054.0,32053.0,0.94113608]
[1609772274950,10.0,32054.0,32053.0,0.29163608]
[1609772275151,10.0,32054.0,32053.0,0.15531]
[1609772276151,10.0,32054.0,32053.0,0.29163608]
[1609772277554,10.0,32054.0,32039.0,4.5183]
[1609772278155,10.0,32054.0,32044.0,0.13632608]
[1609772278353,10.0,32054.0,32044.0,0.23359608]
[1609772280154,0.13632608,32045.0,32044.0,0.23359608]
[1609772281454,10.0,32054.0,32044.0,0.23359608]
[1609772282364,10.0,32054.0,32053.0,0.13632608]
[1609772283163,10.0,32054.0,32053.0,0.27139608]
[1609772292169,10.0,32054.0,32053.0,0.13507]
[1609772292368,10.0,32054.0,32050.0,4.0018]
[1609772292567,10.0,32054.0,32053.0,0.13632608]
[1609772292768,10.0,32054.0,32053.0,0.23416608]
[1609772294170,9.9998,32054.0,32053.0,0.23416608]
[1609772299475,9.8547,32054.0,32053.0,0.23416608]
[1609772300377,9.8506,32054.0,32053.0,0.23416608]
[1609772300576,9.8444,32054.0,32053.0,0.23416608]
[1609772300978,9.7724,32054.0,32053.0,0.23416608]
[1609772301580,9.6257,32054.0,32053.0,0.23416608]
[1609772302181,9.007,32054.0,32053.0,0.23416608]
[1609772302381,9.0032,32054.0,32053.0,0.23416608]
[1609772302980,9.0032,32054.0,32053.0,0.32726608]
[1609772303180,8.8537,32054.0,32053.0,0.32726608]
[1609772303982,8.7305,32054.0,32053.0,0.32726608]
[1609772304184,8.6364,32054.0,32053.0,0.32726608]
[1609772305484,8.576,32054.0,32053.0,0.32726608]
[1609772306084,8.5448,32054.0,32053.0,0.32726608]
[1609772306285,8.5385,32054.0,32053.0,0.32726608]
[1609772306686,8.4762,32054.0,32053.0,0.32726608]
[1609772309289,8.3736,32054.0,32053.0,0.23416608]
[1609772309891,8.3736,32054.0,32053.0,0.09784]
[1609772310089,8.3736,32054.0,32044.0,1.9331883]
[1609772310290,8.3736,32054.0,32053.0,0.09971]
[1609772311094,8.3736,32054.0,32053.0,0.19191]
[1609772311293,8.3666,32054.0,32053.0,0.32823608]
[1609772312597,8.3604,32054.0,32053.0,0.32823608]
[1609772313195,8.3604,32054.0,32053.0,0.19191]
[1609772313595,8.0353,32054.0,32053.0,0.32823608]
[1609772313796,7.3727,32054.0,32053.0,0.32823608]
[1609772313995,7.1974,32054.0,32053.0,0.32823608]
[1609772314195,7.0758,32054.0,32053.0,0.32823608]
[1609772314396,7.0295,32054.0,32053.0,0.19191]
[1609772314997,7.0169,32054.0,32053.0,0.09971]
[1609772315195,7.0169,32054.0,32049.0,5.0436]
[1609772315697,7.0169,32054.0,32053.0,0.13632608]
[1609772315996,7.0169,32054.0,32053.0,0.37191608]
[1609772316998,6.9972,32054.0,32053.0,0.37191608]
[1609772318200,6.958,32054.0,32053.0,0.37191608]
[1609772318501,6.9095,32054.0,32053.0,0.37191608]
[1609772319701,6.8233,32054.0,32053.0,0.37191608]
[1609772321203,6.8233,32054.0,32053.0,0.14249]
[1609772321404,6.8233,32054.0,32049.0,5.0436]
[1609772321605,6.8233,32054.0,32053.0,0.15649]
[1609772321805,6.8233,32054.0,32053.0,0.29281608]
[1609772323705,6.7486,32054.0,32053.0,0.29281608]
[1609772325206,6.7381,32054.0,32053.0,0.29281608]
[1609772327107,6.7307,32054.0,32053.0,0.29281608]
[1609772327309,6.7307,32054.0,32053.0,0.15649]
[1609772327508,6.7307,32054.0,32052.0,0.0939]
[1609772327708,6.7307,32054.0,32053.0,0.28124608]
[1609772329109,6.6902,32054.0,32053.0,0.37554608]
[1609772329310,6.4095,32054.0,32053.0,0.37554608]
[1609772329510,6.3099,32054.0,32053.0,0.37554608]
[1609772330011,6.3099,32054.0,32053.0,0.28124608]
[1609772333317,6.2783,32054.0,32053.0,0.28124608]
[1609772333814,6.2504,32054.0,32053.0,0.28124608]
[1609772337423,10.857,32054.0,32053.0,0.28124608]
[1609772338223,6.2504,32054.0,32053.0,0.28124608]
[1609772338924,9.9269,32054.0,32053.0,0.28124608]
[1609772339524,6.2504,32054.0,32053.0,0.28124608]
[1609772339724,6.2504,32054.0,32053.0,0.14492]
[1609772340227,6.2504,32054.0,32053.0,0.13632608]
[1609772340626,6.2504,32054.0,32053.0,0.29229608]
[1609772342230,6.38672608,32054.0,32053.0,0.15597]
[1609772342630,10.92632608,32054.0,32053.0,0.15597]
[1609772342832,10.92632608,32054.0,32053.0,0.13077]
[1609772343030,10.92632608,32054.0,32034.0,0.09797]
[1609772343430,10.92632608,32054.0,32026.0,1.89582836]
[1609772344030,6.38672608,32054.0,32026.0,1.89582836]
[1609772344232,5.2275,32037.0,32027.0,1.90435593]
[1609772345030,5.2275,32037.0,32033.0,0.13632608]
[1609772345430,5.2275,32037.0,32032.0,0.08807608]
[1609772346833,5.2275,32037.0,32010.0,1.92610121]
[1609772347232,0.68043659,32050.0,32010.0,1.92610121]
[1609772347832,0.68043659,32050.0,32010.0,2.05148121]
[1609772348034,0.68052382,32049.0,32028.0,0.13632608]
[1609772348434,4.794,32036.0,32028.0,0.13632608]
[1609772348634,4.794,32036.0,32010.0,0.12538]
[1609772349735,4.794,32036.0,32010.0,2.05813413]
[1609772350035,4.794,32036.0,32022.0,0.13632608]
[1609772350235,4.794,32036.0,32022.0,0.24956608]
[1609772351237,0.68036592,32046.0,32022.0,0.11324]
[1609772352037,0.67771549,32055.0,32025.0,4.6245]
[1609772353038,0.67771549,32055.0,32053.0,0.13632608]
[1609772353236,6.2448,32054.0,32053.0,0.24588608]
[1609772357141,5.9329,32054.0,32053.0,0.24588608]
[1609772358241,5.9069,32054.0,32053.0,0.24588608]
[1609772358942,5.7075,32054.0,32053.0,0.24588608]
[1609772359142,5.7075,32054.0,32053.0,0.83628608]
[1609772359943,5.5929,32054.0,32053.0,0.92888608]
[1609772360143,5.5151,32054.0,32053.0,0.92888608]
[1609772360543,5.4705,32054.0,32053.0,0.92888608]
[1609772361445,5.4705,32054.0,32053.0,0.83628608]
[1609772361747,5.18503375,32054.0,32053.0,0.83628608]
[1609772362247,5.18503375,32054.0,32053.0,0.24588608]
[1609772362447,4.07153375,32054.0,32053.0,0.33988608]
[1609772362647,2.12595375,32054.0,32053.0,0.33988608]
[1609772362847,1.25237375,32054.0,32053.0,0.20356]
[1609772363050,0.24424375,32054.0,32053.0,0.20356]
[1609772363249,0.67740599,32093.0,32075.0,3.5909]
[1609772363452,0.67713678,32090.0,32075.0,0.10777]
[1609772363850,0.67713678,32090.0,32086.0,4.2968]
[1609772364251,0.67713678,32090.0,32086.0,4.42328]
[1609772364652,0.67699566,32105.0,32086.0,4.42328]
[1609772365052,0.67699566,32105.0,32087.0,0.0939]
[1609772365251,0.67699566,32105.0,32099.0,0.13632608]
[1609772365854,0.07868641,32106.0,32094.0,0.13877]
[1609772366251,0.07868641,32106.0,32099.0,4.4431]
[1609772366452,0.07868641,32106.0,32094.0,0.13877]
[1609772366652,0.07868641,32106.0,32102.0,4.3775]
[1609772367057,0.07868641,32106.0,32094.0,0.13877]
[1609772367253,0.07868641,32106.0,32105.0,0.13632608]
[1609772367854,0.07868641,32106.0,32104.0,4.0975]
[1609772368054,0.07868641,32106.0,32094.0,0.13877]
[1609772368855,0.07868641,32106.0,32086.0,0.12648]
[1609772369255,0.07868641,32106.0,32079.0,4.1438]
[1609772369454,0.07868641,32106.0,32099.0,0.13632608]
[1609772369855,0.07868641,32106.0,32087.0,0.1564]
[1609772371357,0.13632608,32092.0,32088.0,0.13632608]
[1609772372555,3.7767,32102.0,32088.0,0.13632608]
[1609772373557,3.7767,32102.0,32094.0,0.13632608]
[1609772373958,3.7767,32102.0,32087.0,0.1564]
[1609772374158,3.7767,32102.0,32062.0,3.6802]
[1609772374358,0.092,32101.0,32062.0,3.6802]
[1609772374560,0.092,32101.0,32051.0,1.8625264]
[1609772374761,0.092,32101.0,32059.0,3.6457]
[1609772375160,0.092,32101.0,32059.0,3.74861]
[1609772375460,0.092,32101.0,32079.0,0.13632608]
[1609772377562,0.092,32101.0,32089.0,0.13632608]
[1609772377762,0.092,32101.0,32072.0,4.0596]
[1609772378163,0.092,32101.0,32066.0,0.12917]
[1609772380765,0.092,32101.0,32059.0,0.10291]
[1609772380966,0.092,32101.0,32053.0,4.9406]
[1609772381368,0.79790523,32104.0,32053.0,4.9406]
[1609772381567,0.79790523,32104.0,32084.0,0.13632608]
[1609772382973,0.67291179,32103.0,32084.0,0.13632608]
[1609772383371,0.0938,32102.0,32084.0,0.13632608]
[1609772383572,0.13632608,32087.0,32084.0,0.13632608]
[1609772384773,0.11034,32089.0,32084.0,0.13632608]
[1609772385575,0.11034,32089.0,32088.0,0.13632608]
[1609772387475,0.24666608,32089.0,32088.0,0.13632608]
[1609772388377,0.11034,32089.0,32088.0,0.13632608]
[1609772388577,0.11034,32089.0,32069.0,0.103]
[1609772388978,0.09684,32093.0,32055.0,4.289]
[1609772389178,0.09684,32093.0,32055.0,4.43301]
[1609772389379,0.283,32092.0,32055.0,4.43301]
[1609772389580,0.283,32092.0,32087.0,0.13632608]
[1609772391282,0.283,32092.0,32076.0,4.0786]
[1609772391785,0.283,32092.0,32091.0,0.13632608]
[1609772392184,0.283,32092.0,32081.0,0.14007]
[1609772393785,0.283,32092.0,32091.0,0.13632608]
[1609772394485,0.12536,32104.0,32091.0,0.13632608]
[1609772394688,0.21501249,32106.0,32091.0,0.13632608]
[1609772395891,0.21501249,32106.0,32105.0,0.13632608]
[1609772397092,0.21501249,32106.0,32088.0,4.1061]
[1609772397292,0.21501249,32106.0,32091.0,0.11758]
[1609772397894,0.21501249,32106.0,32105.0,0.13632608]
[1609772402400,0.07868641,32106.0,32105.0,0.13632608]
[1609772403199,0.07868641,32106.0,32103.0,5.0148]
[1609772403903,0.07868641,32106.0,32105.0,0.13632608]
[1609772404502,0.09682,32111.0,32105.0,0.13632608]
[1609772404701,0.67124288,32127.0,32103.0,5.0148]
[1609772405502,0.67124288,32127.0,32104.0,0.0943]
[1609772406103,0.67124288,32127.0,32126.0,0.13632608]
[1609772406405,0.67197522,32130.0,32126.0,0.13632608]
[1609772408205,0.67071235,32142.0,32126.0,0.13632608]
[1609772409304,1.05149175,32144.0,32126.0,0.13632608]
[1609772409511,0.0941,32140.0,32126.0,0.13632608]
[1609772409704,0.14951,32140.0,32126.0,0.68102608]
[1609772409904,0.14951,32140.0,32126.0,0.13632608]
[1609772410112,0.14951,32140.0,32139.0,0.13632608]
[1609772410906,0.288,32144.0,32139.0,0.13632608]
[1609772411106,0.288,32144.0,32139.0,0.66762608]
[1609772411307,0.288,32144.0,32127.0,0.11399]
[1609772411507,4.4533,32140.0,32127.0,0.11399]
[1609772411907,4.4533,32140.0,32120.0,0.12912]
[1609772412108,4.4533,32140.0,32130.0,0.13632608]
[1609772412309,4.4533,32140.0,32120.0,0.12912]
[1609772412509,0.42802,32144.0,32120.0,0.12912]
[1609772412910,4.7436,32124.0,32120.0,0.12912]
[1609772413711,0.12695,32137.0,32120.0,0.12912]
[1609772414113,0.12695,32137.0,32136.0,0.13632608]
[1609772415213,0.79947632,32137.0,32136.0,0.13632608]
[1609772416619,0.12695,32137.0,32136.0,0.13632608]
[1609772418314,0.42802,32144.0,32136.0,0.13632608]
[1609772420219,0.42802,32144.0,32143.0,0.13632608]
[1609772420816,0.42802,32144.0,32120.0,0.14439]
[1609772421017,0.42802,32144.0,32112.0,0.092]
[1609772422218,0.14002,32144.0,32143.0,0.13632608]
[1609772422617,4.8836,32145.0,32143.0,0.13632608]
[1609772423621,0.2898,32148.0,32143.0,0.13632608]
[1609772424221,0.2898,32148.0,32147.0,0.13632608]
[1609772430029,0.2898,32148.0,32131.0,0.15873]
[1609772430231,0.44054,32148.0,32141.0,0.13632608]
[1609772431630,0.44054,32148.0,32131.0,0.15873]
[1609772432130,0.44054,32148.0,32124.0,0.15389]